[Event "Titled Tuesday Blitz August 15 Early 2023"]
[White "Galchenko, Matvey"]
[Black "Mrudul Dehankar"]
[WhiteFideId "24175480"]
[BlackFideId "25096990"]
[WhiteElo "2894"]
[BlackElo "2452"]
[Result "1-0"]
[Round "1"]
[TimeControl "180+1"]
[Date "2023.08.15"]
[WhiteClock "0:00:45"]
[BlackClock "0:00:00"]
[Board "52"]

1. f4 {[%clk 0:02:55]}  c5 {[%clk 0:02:55]} 2. Nf3 {[%clk 0:02:49]}  Nc6 {[%clk 0:02:55]} 3. g3 {[%clk 0:02:50]}  g6 {[%clk 0:02:54]} 4. Bg2 {[%clk 0:02:50]}  Bg7 {[%clk 0:02:54]} 5. O-O {[%clk 0:02:51]}  e6 {[%clk 0:02:50]} 6. d3 {[%clk 0:02:51]}  Nge7 {[%clk 0:02:50]} 7. Nc3 {[%clk 0:02:52]}  O-O {[%clk 0:02:49]} 8. e4 {[%clk 0:02:53]}  d5 {[%clk 0:02:49]} 9. h3 {[%clk 0:02:53]}  Rb8 {[%clk 0:02:48]} 10. a4 {[%clk 0:02:53]}  a6 {[%clk 0:02:47]} 11. g4 {[%clk 0:02:53]}  b5 {[%clk 0:02:37]} 12. axb5 {[%clk 0:02:54]}  axb5 {[%clk 0:02:37]} 13. e5 {[%clk 0:02:47]}  f6 {[%clk 0:02:29]} 14. exf6 {[%clk 0:02:45]}  Bxf6 {[%clk 0:02:29]} 15. Qe1 {[%clk 0:02:40]}  Qd6 {[%clk 0:02:22]} 16. Qg3 {[%clk 0:02:35]}  Bd7 {[%clk 0:02:06]} 17. Re1 {[%clk 0:02:23]}  Nb4 {[%clk 0:01:57]} 18. Re2 {[%clk 0:02:18]}  Ra8 {[%clk 0:01:57]} 19. Rb1 {[%clk 0:02:17]}  Ra6 {[%clk 0:01:51]} 20. Ne5 {[%clk 0:02:07]}  Rfa8 {[%clk 0:01:31]} 21. Kh2 {[%clk 0:01:41]}  Ra1 {[%clk 0:01:29]} 22. Be3 {[%clk 0:01:39]}  Rxb1 {[%clk 0:01:03]} 23. Nxb1 {[%clk 0:01:38]}  Ra2 {[%clk 0:00:51]} 24. c3 {[%clk 0:01:25]}  Na6 {[%clk 0:00:50]} 25. Qf2 {[%clk 0:01:11]}  Bxe5 {[%clk 0:00:21]} 26. fxe5 {[%clk 0:01:10]}  Qxe5+ {[%clk 0:00:21]} 27. Bf4 {[%clk 0:01:10]}  Qf6 {[%clk 0:00:21]} 28. Qg3 {[%clk 0:01:00]}  Nc6 {[%clk 0:00:14]} 29. Rf2 {[%clk 0:00:56]}  Qg7 {[%clk 0:00:04]} 30. Bd6 {[%clk 0:00:55]}  h6 {[%clk 0:00:04]} 31. Bf8 {[%clk 0:00:49]}  Qe5 {[%clk 0:00:03]} 32. Bxh6 {[%clk 0:00:44]}  Qxg3+ {[%clk 0:00:04]} 33. Kxg3 {[%clk 0:00:45]}  Ra1 {[%clk 0:00:00]} 34. Nd2 {[%clk 0:00:45]} 1-0


[Site "https://www.chess.com"]

[Event "Titled Tuesday Blitz August 15 Early 2023"]
[White "Le Goff, Ronan"]
[Black "Kovalev, Vladislav"]
[WhiteFideId "612073"]
[BlackFideId "13504398"]
[WhiteElo "2451"]
[BlackElo "2884"]
[Result "0-1"]
[Round "1"]
[TimeControl "180+1"]
[Date "2023.08.15"]
[WhiteClock "0:01:22"]
[BlackClock "0:01:31"]
[Board "53"]

1. d4 {[%clk 0:03:00]}  Nf6 {[%clk 0:03:00]} 2. Nf3 {[%clk 0:02:58]}  e6 {[%clk 0:02:59]} 3. e3 {[%clk 0:02:52]}  c5 {[%clk 0:02:58]} 4. Bd3 {[%clk 0:02:49]}  d5 {[%clk 0:02:57]} 5. O-O {[%clk 0:02:28]}  Nc6 {[%clk 0:02:57]} 6. c3 {[%clk 0:02:27]}  Qc7 {[%clk 0:02:50]} 7. Nbd2 {[%clk 0:02:22]}  Be7 {[%clk 0:02:47]} 8. Re1 {[%clk 0:02:20]}  O-O {[%clk 0:02:46]} 9. dxc5 {[%clk 0:02:20]}  Bxc5 {[%clk 0:02:44]} 10. e4 {[%clk 0:02:20]}  Rd8 {[%clk 0:02:26]} 11. Qe2 {[%clk 0:02:12]}  h6 {[%clk 0:02:01]} 12. e5 {[%clk 0:02:08]}  Ng4 {[%clk 0:01:58]} 13. Rf1 {[%clk 0:02:00]}  Ngxe5 {[%clk 0:01:56]} 14. Bc2 {[%clk 0:01:58]}  b6 {[%clk 0:01:48]} 15. Nb3 {[%clk 0:01:54]}  Bd6 {[%clk 0:01:45]} 16. h3 {[%clk 0:01:53]}  a5 {[%clk 0:01:45]} 17. Nxe5 {[%clk 0:01:50]}  Nxe5 {[%clk 0:01:44]} 18. Qh5 {[%clk 0:01:49]}  Ba6 {[%clk 0:01:33]} 19. Re1 {[%clk 0:01:37]}  Bd3 {[%clk 0:01:32]} 20. Bxd3 {[%clk 0:01:23]}  Nxd3 {[%clk 0:01:33]} 21. Re3 {[%clk 0:01:24]}  Nxc1 {[%clk 0:01:31]} 22. Rxc1 {[%clk 0:01:22]}  Bf4 {[%clk 0:01:31]} 0-1


[Site "https://www.chess.com"]

[Event "Titled Tuesday Blitz August 15 Early 2023"]
[White "Mitrabha, Guha"]
[Black "Manukian, Artak"]
[WhiteFideId "5057000"]
[BlackFideId "13301373"]
[WhiteElo "2871"]
[BlackElo "2446"]
[Result "1-0"]
[Round "1"]
[TimeControl "180+1"]
[Date "2023.08.15"]
[WhiteClock "0:01:46"]
[BlackClock "0:01:22"]
[Board "56"]

1. Nf3 {[%clk 0:02:35]}  c6 {[%clk 0:02:59]} 2. c4 {[%clk 0:02:34]}  d5 {[%clk 0:03:00]} 3. cxd5 {[%clk 0:02:35]}  cxd5 {[%clk 0:03:00]} 4. d4 {[%clk 0:02:35]}  Nc6 {[%clk 0:03:01]} 5. Nc3 {[%clk 0:02:35]}  Bg4 {[%clk 0:03:01]} 6. Qb3 {[%clk 0:02:34]}  Bxf3 {[%clk 0:02:59]} 7. exf3 {[%clk 0:02:35]}  Nxd4 {[%clk 0:02:39]} 8. Qxb7 {[%clk 0:02:33]}  Rb8 {[%clk 0:02:33]} 9. Qxa7 {[%clk 0:02:31]}  Nc2+ {[%clk 0:02:27]} 10. Kd1 {[%clk 0:02:31]}  Nxa1 {[%clk 0:02:28]} 11. Bb5+ {[%clk 0:02:31]}  Rxb5 {[%clk 0:02:27]} 12. Nxb5 {[%clk 0:02:32]}  f6 {[%clk 0:02:19]} 13. Be3 {[%clk 0:02:31]}  Qc8 {[%clk 0:01:46]} 14. Qa4 {[%clk 0:02:21]}  Kf7 {[%clk 0:01:43]} 15. Kd2 {[%clk 0:02:21]}  e5 {[%clk 0:01:39]} 16. Rc1 {[%clk 0:02:21]}  Qf5 {[%clk 0:01:35]} 17. Rc7+ {[%clk 0:02:07]}  Kg6 {[%clk 0:01:35]} 18. Nd4 {[%clk 0:02:03]}  exd4 {[%clk 0:01:22]} 19. Qe8# {[%clk 0:01:46]} 1-0


[Site "https://www.chess.com"]

[Event "Titled Tuesday Blitz August 15 Early 2023"]
[White "Ozen, Deniz"]
[Black "Kielinkei"]
[WhiteFideId "6349196"]
[WhiteElo "2865"]
[BlackElo "2444"]
[Result "1-0"]
[Round "1"]
[TimeControl "180+1"]
[Date "2023.08.15"]
[WhiteClock "0:01:44"]
[BlackClock "0:00:18"]
[Board "58"]

1. Nf3 {[%clk 0:02:59]}  d5 {[%clk 0:02:59]} 2. d4 {[%clk 0:02:58]}  Nf6 {[%clk 0:02:57]} 3. c3 {[%clk 0:02:58]}  Bf5 {[%clk 0:02:55]} 4. Qb3 {[%clk 0:02:56]}  Qc8 {[%clk 0:02:53]} 5. Bf4 {[%clk 0:02:52]}  c6 {[%clk 0:02:49]} 6. e3 {[%clk 0:02:51]}  Nbd7 {[%clk 0:02:48]} 7. Nbd2 {[%clk 0:02:51]}  h6 {[%clk 0:02:46]} 8. c4 {[%clk 0:02:49]}  e6 {[%clk 0:02:46]} 9. Rc1 {[%clk 0:02:49]}  Nh5 {[%clk 0:02:27]} 10. Be5 {[%clk 0:02:46]}  f6 {[%clk 0:02:14]} 11. Bg3 {[%clk 0:02:45]}  Nxg3 {[%clk 0:02:11]} 12. hxg3 {[%clk 0:02:46]}  Bd6 {[%clk 0:02:09]} 13. Bd3 {[%clk 0:02:46]}  Bxd3 {[%clk 0:01:44]} 14. Qxd3 {[%clk 0:02:46]}  Kf7 {[%clk 0:01:43]} 15. cxd5 {[%clk 0:02:37]}  exd5 {[%clk 0:01:43]} 16. e4 {[%clk 0:02:38]}  Re8 {[%clk 0:01:27]} 17. O-O {[%clk 0:02:38]}  dxe4 {[%clk 0:01:13]} 18. Nxe4 {[%clk 0:02:38]}  Qc7 {[%clk 0:01:06]} 19. Qb3+ {[%clk 0:02:17]}  Kf8 {[%clk 0:01:05]} 20. Nh4 {[%clk 0:02:07]}  Rxe4 {[%clk 0:00:55]} 21. Ng6+ {[%clk 0:02:08]}  Ke8 {[%clk 0:00:55]} 22. Rfe1 {[%clk 0:02:07]}  f5 {[%clk 0:00:36]} 23. f3 {[%clk 0:01:47]}  Rxe1+ {[%clk 0:00:21]} 24. Rxe1+ {[%clk 0:01:47]}  Kd8 {[%clk 0:00:21]} 25. Qg8+ {[%clk 0:01:44]}  Nf8 {[%clk 0:00:18]} 26. Nxf8 {[%clk 0:01:44]} 1-0


[Site "https://www.chess.com"]

[Event "Titled Tuesday Blitz August 15 Early 2023"]
[White "Rangel, Daniel"]
[Black "Ter-Sahakyan, Samvel"]
[WhiteFideId "2124475"]
[BlackFideId "13302531"]
[WhiteElo "2441"]
[BlackElo "2844"]
[Result "0-1"]
[Round "1"]
[TimeControl "180+1"]
[Date "2023.08.15"]
[WhiteClock "0:00:06"]
[BlackClock "0:01:18"]
[Board "61"]

1. c4 {[%clk 0:03:00]}  e5 {[%clk 0:02:59]} 2. g3 {[%clk 0:02:57]}  Be7 {[%clk 0:02:57]} 3. Bg2 {[%clk 0:02:56]}  f5 {[%clk 0:02:56]} 4. Nc3 {[%clk 0:02:55]}  Nf6 {[%clk 0:02:55]} 5. Nf3 {[%clk 0:02:55]}  d6 {[%clk 0:02:53]} 6. d4 {[%clk 0:02:43]}  e4 {[%clk 0:02:53]} 7. Ng5 {[%clk 0:02:28]}  O-O {[%clk 0:02:46]} 8. h4 {[%clk 0:02:20]}  Qe8 {[%clk 0:02:35]} 9. Qb3 {[%clk 0:02:14]}  c6 {[%clk 0:02:31]} 10. d5 {[%clk 0:02:07]}  Na6 {[%clk 0:02:28]} 11. Be3 {[%clk 0:01:55]}  Ng4 {[%clk 0:02:27]} 12. c5 {[%clk 0:01:45]}  Nxe3 {[%clk 0:02:24]} 13. dxc6+ {[%clk 0:01:45]}  Kh8 {[%clk 0:02:24]} 14. cxb7 {[%clk 0:01:24]}  Nxg2+ {[%clk 0:02:23]} 15. Kf1 {[%clk 0:01:24]}  Bxb7 {[%clk 0:02:20]} 16. Qxb7 {[%clk 0:01:22]}  Nxc5 {[%clk 0:02:20]} 17. Qd5 {[%clk 0:01:22]}  Nxh4 {[%clk 0:02:03]} 18. gxh4 {[%clk 0:01:14]}  Qh5 {[%clk 0:02:01]} 19. Ne6 {[%clk 0:00:56]}  Nxe6 {[%clk 0:01:59]} 20. Qxe6 {[%clk 0:00:57]}  Bf6 {[%clk 0:02:00]} 21. Nd5 {[%clk 0:00:51]}  Bxb2 {[%clk 0:01:54]} 22. Rb1 {[%clk 0:00:50]}  Be5 {[%clk 0:01:54]} 23. Rb7 {[%clk 0:00:36]}  Rac8 {[%clk 0:01:51]} 24. Rb1 {[%clk 0:00:15]}  Rce8 {[%clk 0:01:37]} 25. Qd7 {[%clk 0:00:14]}  f4 {[%clk 0:01:33]} 26. Nc7 {[%clk 0:00:11]}  Rb8 {[%clk 0:01:28]} 27. Rxb8 {[%clk 0:00:08]}  Rxb8 {[%clk 0:01:29]} 28. Kg2 {[%clk 0:00:07]}  f3+ {[%clk 0:01:22]} 29. Kh3 {[%clk 0:00:06]}  fxe2 {[%clk 0:01:19]} 30. Rb1 {[%clk 0:00:06]}  Qf3# {[%clk 0:01:18]} 0-1


[Site "https://www.chess.com"]

[Event "Titled Tuesday Blitz August 15 Early 2023"]
[White "Nenezic, Marko"]
[Black "Liu, Casper"]
[WhiteFideId "912123"]
[BlackFideId "1454153"]
[WhiteElo "2842"]
[BlackElo "2439"]
[Result "0-1"]
[Round "1"]
[TimeControl "180+1"]
[Date "2023.08.15"]
[WhiteClock "0:00:00"]
[BlackClock "0:00:23"]
[Board "62"]

1. d4 {[%clk 0:03:00]}  Nf6 {[%clk 0:03:00]} 2. c4 {[%clk 0:03:00]}  g6 {[%clk 0:03:00]} 3. Nc3 {[%clk 0:03:01]}  Bg7 {[%clk 0:03:01]} 4. e4 {[%clk 0:03:01]}  O-O {[%clk 0:03:02]} 5. Be2 {[%clk 0:03:01]}  d6 {[%clk 0:03:02]} 6. Be3 {[%clk 0:03:02]}  e5 {[%clk 0:03:03]} 7. d5 {[%clk 0:03:02]}  Na6 {[%clk 0:03:02]} 8. h4 {[%clk 0:02:59]}  Nc5 {[%clk 0:03:03]} 9. Qc2 {[%clk 0:03:00]}  a5 {[%clk 0:03:03]} 10. h5 {[%clk 0:02:58]}  a4 {[%clk 0:03:02]} 11. O-O-O {[%clk 0:02:55]}  Bd7 {[%clk 0:03:01]} 12. Nh3 {[%clk 0:02:36]}  Ng4 {[%clk 0:02:54]} 13. Bxg4 {[%clk 0:02:35]}  Bxg4 {[%clk 0:02:54]} 14. f3 {[%clk 0:02:35]}  Bd7 {[%clk 0:02:47]} 15. g4 {[%clk 0:02:34]}  Ra5 {[%clk 0:02:15]} 16. Qh2 {[%clk 0:02:30]}  b5 {[%clk 0:02:14]} 17. cxb5 {[%clk 0:02:16]}  Bxb5 {[%clk 0:02:12]} 18. hxg6 {[%clk 0:02:13]}  hxg6 {[%clk 0:01:53]} 19. Nf2 {[%clk 0:01:27]}  Re8 {[%clk 0:01:53]} 20. Qh7+ {[%clk 0:00:53]}  Kf8 {[%clk 0:01:52]} 21. Bh6 {[%clk 0:00:54]}  Bxh6+ {[%clk 0:01:52]} 22. Qxh6+ {[%clk 0:00:54]}  Ke7 {[%clk 0:01:50]} 23. g5 {[%clk 0:00:52]}  Qb8 {[%clk 0:01:33]} 24. Qg7 {[%clk 0:00:49]}  a3 {[%clk 0:01:21]} 25. Rh7 {[%clk 0:00:27]}  axb2+ {[%clk 0:01:18]} 26. Kb1 {[%clk 0:00:25]}  Rf8 {[%clk 0:00:25]} 27. Qxg6 {[%clk 0:00:20]}  Bc4 {[%clk 0:00:23]} 28. Qf6+ {[%clk 0:00:18]}  Ke8 {[%clk 0:00:23]} 29. g6 {[%clk 0:00:17]}  Bxa2+ {[%clk 0:00:23]} 30. Nxa2 {[%clk 0:00:17]}  Qb3 {[%clk 0:00:24]} 31. gxf7+ {[%clk 0:00:14]}  Kd7 {[%clk 0:00:24]} 32. Qf5+ {[%clk 0:00:14]}  Kd8 {[%clk 0:00:23]} 33. Qg5+ {[%clk 0:00:00]}  Kc8 {[%clk 0:00:23]} 0-1


[Site "https://www.chess.com"]

[Event "Titled Tuesday Blitz August 15 Early 2023"]
[White "Harriott, Tyrell"]
[Black "Timofeev, Artyom"]
[WhiteFideId "2086484"]
[BlackFideId "4140419"]
[WhiteElo "2438"]
[BlackElo "2831"]
[Result "0-1"]
[Round "1"]
[TimeControl "180+1"]
[Date "2023.08.15"]
[WhiteClock "0:00:12"]
[BlackClock "0:00:45"]
[Board "63"]

1. d4 {[%clk 0:03:00]}  Nf6 {[%clk 0:02:55]} 2. e3 {[%clk 0:03:01]}  g6 {[%clk 0:02:53]} 3. Bd3 {[%clk 0:03:01]}  Bg7 {[%clk 0:02:53]} 4. f4 {[%clk 0:02:58]}  O-O {[%clk 0:02:52]} 5. Nf3 {[%clk 0:02:53]}  c5 {[%clk 0:02:52]} 6. O-O {[%clk 0:02:52]}  b6 {[%clk 0:02:50]} 7. f5 {[%clk 0:02:52]}  Bb7 {[%clk 0:02:49]} 8. Qe1 {[%clk 0:02:51]}  Be4 {[%clk 0:02:44]} 9. Bxe4 {[%clk 0:02:49]}  Nxe4 {[%clk 0:02:43]} 10. fxg6 {[%clk 0:02:47]}  fxg6 {[%clk 0:02:42]} 11. Nc3 {[%clk 0:02:47]}  d5 {[%clk 0:02:38]} 12. Bd2 {[%clk 0:02:41]}  Nc6 {[%clk 0:02:36]} 13. Rd1 {[%clk 0:02:30]}  e6 {[%clk 0:02:26]} 14. dxc5 {[%clk 0:02:19]}  Nxc5 {[%clk 0:02:23]} 15. Qg3 {[%clk 0:02:13]}  Qe7 {[%clk 0:02:17]} 16. e4 {[%clk 0:02:03]}  Bxc3 {[%clk 0:02:06]} 17. bxc3 {[%clk 0:01:57]}  Nxe4 {[%clk 0:02:05]} 18. Qh3 {[%clk 0:01:53]}  Rf5 {[%clk 0:01:48]} 19. Be3 {[%clk 0:01:45]}  Raf8 {[%clk 0:01:46]} 20. g4 {[%clk 0:01:39]}  R5f7 {[%clk 0:01:44]} 21. Kh1 {[%clk 0:01:27]}  Nxc3 {[%clk 0:01:30]} 22. Rde1 {[%clk 0:01:26]}  Ne4 {[%clk 0:01:29]} 23. Bh6 {[%clk 0:01:25]}  Re8 {[%clk 0:01:18]} 24. g5 {[%clk 0:01:14]}  Rf5 {[%clk 0:01:15]} 25. Qg2 {[%clk 0:01:01]}  Qc5 {[%clk 0:01:10]} 26. Nh4 {[%clk 0:00:58]}  Nf2+ {[%clk 0:01:09]} 27. Kg1 {[%clk 0:00:44]}  Nd3+ {[%clk 0:01:04]} 28. Kh1 {[%clk 0:00:44]}  Nxe1 {[%clk 0:01:03]} 29. Rxe1 {[%clk 0:00:45]}  Rf2 {[%clk 0:01:02]} 30. Qg4 {[%clk 0:00:39]}  Qxc2 {[%clk 0:00:59]} 31. Nf3 {[%clk 0:00:34]}  Qf5 {[%clk 0:00:56]} 32. Qxf5 {[%clk 0:00:31]}  gxf5 {[%clk 0:00:56]} 33. Ng1 {[%clk 0:00:27]}  Kf7 {[%clk 0:00:54]} 34. Rc1 {[%clk 0:00:26]}  Rc8 {[%clk 0:00:53]} 35. Nh3 {[%clk 0:00:26]}  Rxa2 {[%clk 0:00:52]} 36. Nf4 {[%clk 0:00:25]}  Ne7 {[%clk 0:00:51]} 37. Re1 {[%clk 0:00:22]}  Ng6 {[%clk 0:00:50]} 38. Nxe6 {[%clk 0:00:16]}  Re8 {[%clk 0:00:49]} 39. Rc1 {[%clk 0:00:15]}  Rxe6 {[%clk 0:00:48]} 40. Rc7+ {[%clk 0:00:14]}  Re7 {[%clk 0:00:48]} 41. Rc1 {[%clk 0:00:13]}  Rae2 {[%clk 0:00:47]} 42. h4 {[%clk 0:00:12]}  Re1+ {[%clk 0:00:47]} 43. Rxe1 {[%clk 0:00:13]}  Rxe1+ {[%clk 0:00:48]} 44. Kg2 {[%clk 0:00:13]}  Nxh4+ {[%clk 0:00:48]} 45. Kg3 {[%clk 0:00:12]}  Re4 {[%clk 0:00:48]} 46. g6+ {[%clk 0:00:11]}  Nxg6 {[%clk 0:00:46]} 47. Bc1 {[%clk 0:00:12]}  a5 {[%clk 0:00:45]} 48. Kf3 {[%clk 0:00:12]}  a4 {[%clk 0:00:45]} 49. Ba3 {[%clk 0:00:12]}  b5 {[%clk 0:00:45]} 50. Kf2 {[%clk 0:00:12]}  b4 {[%clk 0:00:46]} 51. Bc1 {[%clk 0:00:12]}  a3 {[%clk 0:00:46]} 52. Bh6 {[%clk 0:00:13]}  a2 {[%clk 0:00:45]} 53. Bg7 {[%clk 0:00:14]}  Kxg7 {[%clk 0:00:44]} 54. Kf3 {[%clk 0:00:14]}  a1=Q {[%clk 0:00:44]} 55. Kf2 {[%clk 0:00:14]}  Qb2+ {[%clk 0:00:44]} 56. Kf3 {[%clk 0:00:15]}  Qe2+ {[%clk 0:00:45]} 57. Kg3 {[%clk 0:00:12]}  Rg4+ {[%clk 0:00:45]} 0-1


[Site "https://www.chess.com"]

[Event "Titled Tuesday Blitz August 15 Early 2023"]
[White "Lagarde, Maxime"]
[Black "Yeritsyan, Hayk"]
[WhiteFideId "662399"]
[BlackFideId "13307320"]
[WhiteElo "2830"]
[BlackElo "2436"]
[Result "1-0"]
[Round "1"]
[TimeControl "180+1"]
[Date "2023.08.15"]
[WhiteClock "0:01:35"]
[BlackClock "0:00:03"]
[Board "64"]

1. d4 {[%clk 0:03:00]}  d5 {[%clk 0:02:56]} 2. Bf4 {[%clk 0:03:00]}  Nf6 {[%clk 0:02:55]} 3. e3 {[%clk 0:03:00]}  c6 {[%clk 0:02:55]} 4. Nd2 {[%clk 0:03:01]}  Bg4 {[%clk 0:02:47]} 5. f3 {[%clk 0:02:58]}  Bh5 {[%clk 0:02:45]} 6. h4 {[%clk 0:02:58]}  Bg6 {[%clk 0:02:44]} 7. g4 {[%clk 0:02:56]}  h5 {[%clk 0:02:40]} 8. g5 {[%clk 0:02:56]}  Nfd7 {[%clk 0:02:37]} 9. c3 {[%clk 0:02:56]}  Qb6 {[%clk 0:02:36]} 10. Qb3 {[%clk 0:02:55]}  e6 {[%clk 0:02:32]} 11. Nh3 {[%clk 0:02:54]}  c5 {[%clk 0:02:31]} 12. Bg3 {[%clk 0:02:53]}  c4 {[%clk 0:02:21]} 13. Qxb6 {[%clk 0:02:53]}  axb6 {[%clk 0:02:07]} 14. a3 {[%clk 0:02:52]}  Nc6 {[%clk 0:01:54]} 15. Nf4 {[%clk 0:02:50]}  Bd6 {[%clk 0:01:54]} 16. Kf2 {[%clk 0:02:48]}  Bxf4 {[%clk 0:01:53]} 17. Bxf4 {[%clk 0:02:49]}  b5 {[%clk 0:01:50]} 18. Rc1 {[%clk 0:02:47]}  Ke7 {[%clk 0:01:46]} 19. e4 {[%clk 0:02:45]}  Nb6 {[%clk 0:01:44]} 20. Bh3 {[%clk 0:02:43]}  Rhe8 {[%clk 0:01:12]} 21. Rhe1 {[%clk 0:02:39]}  Kf8 {[%clk 0:01:10]} 22. Bd6+ {[%clk 0:02:31]}  Kg8 {[%clk 0:01:10]} 23. Re2 {[%clk 0:02:30]}  Na4 {[%clk 0:01:06]} 24. Nf1 {[%clk 0:02:29]}  Red8 {[%clk 0:01:04]} 25. e5 {[%clk 0:02:28]}  Na5 {[%clk 0:01:01]} 26. Ng3 {[%clk 0:02:26]}  Bd3 {[%clk 0:00:55]} 27. Rd2 {[%clk 0:02:21]}  Nb3 {[%clk 0:00:51]} 28. Rcd1 {[%clk 0:02:22]}  Nxd2 {[%clk 0:00:51]} 29. Rxd2 {[%clk 0:02:23]}  g6 {[%clk 0:00:50]} 30. Bb4 {[%clk 0:02:21]}  Rdc8 {[%clk 0:00:49]} 31. Ke3 {[%clk 0:02:20]}  Rd8 {[%clk 0:00:48]} 32. Nh1 {[%clk 0:02:20]}  Re8 {[%clk 0:00:47]} 33. Nf2 {[%clk 0:02:20]}  Bf5 {[%clk 0:00:46]} 34. Bxf5 {[%clk 0:02:18]}  gxf5 {[%clk 0:00:44]} 35. Nh3 {[%clk 0:02:19]}  Kg7 {[%clk 0:00:37]} 36. Nf4 {[%clk 0:02:19]}  Rh8 {[%clk 0:00:37]} 37. g6 {[%clk 0:02:16]}  Rh6 {[%clk 0:00:29]} 38. Rg2 {[%clk 0:02:15]}  Rg8 {[%clk 0:00:26]} 39. Rg5 {[%clk 0:02:10]}  fxg6 {[%clk 0:00:14]} 40. Nxe6+ {[%clk 0:02:09]}  Kf7 {[%clk 0:00:15]} 41. Nf4 {[%clk 0:02:10]}  Rd8 {[%clk 0:00:15]} 42. e6+ {[%clk 0:02:06]}  Kf6 {[%clk 0:00:15]} 43. e7 {[%clk 0:02:07]}  Re8 {[%clk 0:00:14]} 44. Nxd5+ {[%clk 0:02:07]}  Ke6 {[%clk 0:00:14]} 45. Nc7+ {[%clk 0:02:07]}  Kd7 {[%clk 0:00:15]} 46. Nxe8 {[%clk 0:02:07]}  Kxe8 {[%clk 0:00:16]} 47. Rg2 {[%clk 0:02:06]}  Nb6 {[%clk 0:00:16]} 48. Kf4 {[%clk 0:02:05]}  Nd5+ {[%clk 0:00:16]} 49. Kg5 {[%clk 0:02:03]}  Rh8 {[%clk 0:00:16]} 50. Re2 {[%clk 0:02:01]}  Rg8 {[%clk 0:00:13]} 51. Re5 {[%clk 0:02:00]}  Nc7 {[%clk 0:00:12]} 52. d5 {[%clk 0:01:58]}  Kf7 {[%clk 0:00:13]} 53. Kf4 {[%clk 0:01:50]}  Re8 {[%clk 0:00:11]} 54. Ke3 {[%clk 0:01:47]}  Kf6 {[%clk 0:00:12]} 55. Kd4 {[%clk 0:01:48]}  Na6 {[%clk 0:00:10]} 56. d6 {[%clk 0:01:47]}  Nb8 {[%clk 0:00:09]} 57. Kd5 {[%clk 0:01:46]}  Nd7 {[%clk 0:00:09]} 58. Re6+ {[%clk 0:01:46]}  Kf7 {[%clk 0:00:10]} 59. Re1 {[%clk 0:01:46]}  Rc8 {[%clk 0:00:08]} 60. Kd4 {[%clk 0:01:39]}  Re8 {[%clk 0:00:08]} 61. a4 {[%clk 0:01:35]}  bxa4 {[%clk 0:00:06]} 62. Kxc4 {[%clk 0:01:35]}  Rc8+ {[%clk 0:00:04]} 63. Kb5 {[%clk 0:01:36]}  Re8 {[%clk 0:00:05]} 64. Kxa4 {[%clk 0:01:35]}  Nb6+ {[%clk 0:00:05]} 65. Kb5 {[%clk 0:01:35]}  Nd7 {[%clk 0:00:06]} 66. c4 {[%clk 0:01:35]}  Rc8 {[%clk 0:00:05]} 67. c5 {[%clk 0:01:35]}  Re8 {[%clk 0:00:05]} 68. Bc3 {[%clk 0:01:35]}  Rc8 {[%clk 0:00:05]} 69. b4 {[%clk 0:01:36]}  Rf8 {[%clk 0:00:03]} 70. exf8=Q+ {[%clk 0:01:35]} 1-0


[Site "https://www.chess.com"]

[Event "Titled Tuesday Blitz August 15 Early 2023"]
[White "Pakleza, Zbigniew"]
[Black "Mika, Tomasz"]
[WhiteFideId "1119290"]
[BlackFideId "1132970"]
[WhiteElo "2824"]
[BlackElo "2433"]
[Result "1-0"]
[Round "1"]
[TimeControl "180+1"]
[Date "2023.08.15"]
[WhiteClock "0:00:02"]
[BlackClock "0:00:00"]
[Board "66"]

1. d4 {[%clk 0:03:00]}  Nf6 {[%clk 0:02:58]} 2. Nf3 {[%clk 0:03:01]}  d5 {[%clk 0:02:57]} 3. Bf4 {[%clk 0:03:01]}  c5 {[%clk 0:02:58]} 4. c3 {[%clk 0:03:01]}  Nc6 {[%clk 0:02:57]} 5. Nbd2 {[%clk 0:03:02]}  cxd4 {[%clk 0:02:56]} 6. cxd4 {[%clk 0:03:03]}  Bf5 {[%clk 0:02:56]} 7. e3 {[%clk 0:03:03]}  a6 {[%clk 0:02:54]} 8. Be2 {[%clk 0:02:56]}  e6 {[%clk 0:02:54]} 9. O-O {[%clk 0:02:54]}  Be7 {[%clk 0:02:54]} 10. Rc1 {[%clk 0:02:45]}  O-O {[%clk 0:02:54]} 11. Nb3 {[%clk 0:02:45]}  Ne4 {[%clk 0:02:43]} 12. Nfd2 {[%clk 0:02:39]}  Nxd2 {[%clk 0:02:14]} 13. Qxd2 {[%clk 0:02:40]}  Bb4 {[%clk 0:02:04]} 14. Qd1 {[%clk 0:02:41]}  Rc8 {[%clk 0:01:45]} 15. Nc5 {[%clk 0:02:36]}  Qe7 {[%clk 0:01:45]} 16. a3 {[%clk 0:02:27]}  Bxc5 {[%clk 0:01:32]} 17. dxc5 {[%clk 0:02:28]}  e5 {[%clk 0:01:30]} 18. Bg3 {[%clk 0:02:28]}  d4 {[%clk 0:01:28]} 19. b4 {[%clk 0:02:21]}  d3 {[%clk 0:01:20]} 20. Bxd3 {[%clk 0:02:12]}  Rcd8 {[%clk 0:01:20]} 21. Bxf5 {[%clk 0:02:12]}  Rxd1 {[%clk 0:01:19]} 22. Rfxd1 {[%clk 0:02:13]}  Rd8 {[%clk 0:01:10]} 23. Be4 {[%clk 0:02:05]}  Rxd1+ {[%clk 0:01:04]} 24. Rxd1 {[%clk 0:02:06]}  g6 {[%clk 0:01:04]} 25. h3 {[%clk 0:01:48]}  f5 {[%clk 0:01:03]} 26. Bxc6 {[%clk 0:01:48]}  bxc6 {[%clk 0:01:01]} 27. Rd6 {[%clk 0:01:48]}  g5 {[%clk 0:00:54]} 28. f3 {[%clk 0:00:48]}  f4 {[%clk 0:00:48]} 29. exf4 {[%clk 0:00:47]}  exf4 {[%clk 0:00:42]} 30. Bf2 {[%clk 0:00:47]}  Qe5 {[%clk 0:00:36]} 31. Rxc6 {[%clk 0:00:39]}  Qa1+ {[%clk 0:00:36]} 32. Kh2 {[%clk 0:00:40]}  Qb2 {[%clk 0:00:37]} 33. Bg1 {[%clk 0:00:36]}  h5 {[%clk 0:00:26]} 34. Rg6+ {[%clk 0:00:33]}  Kf7 {[%clk 0:00:26]} 35. Rxg5 {[%clk 0:00:31]}  Kf6 {[%clk 0:00:25]} 36. Rxh5 {[%clk 0:00:23]}  Qxa3 {[%clk 0:00:25]} 37. c6 {[%clk 0:00:17]}  Qxb4 {[%clk 0:00:15]} 38. c7 {[%clk 0:00:17]}  Qf8 {[%clk 0:00:11]} 39. Rh6+ {[%clk 0:00:04]}  Ke5 {[%clk 0:00:07]} 40. Rxa6 {[%clk 0:00:05]}  Qc8 {[%clk 0:00:06]} 41. Ra5+ {[%clk 0:00:05]}  Kd6 {[%clk 0:00:05]} 42. Rc5 {[%clk 0:00:06]}  Ke6 {[%clk 0:00:04]} 43. Rc3 {[%clk 0:00:05]}  Kd6 {[%clk 0:00:03]} 44. Rc4 {[%clk 0:00:04]}  Kd5 {[%clk 0:00:03]} 45. Rc1 {[%clk 0:00:03]}  Kd6 {[%clk 0:00:04]} 46. Bf2 {[%clk 0:00:03]}  Kd5 {[%clk 0:00:04]} 47. g3 {[%clk 0:00:03]}  fxg3+ {[%clk 0:00:04]} 48. Bxg3 {[%clk 0:00:04]}  Kd4 {[%clk 0:00:03]} 49. Rd1+ {[%clk 0:00:04]}  Ke3 {[%clk 0:00:03]} 50. Rd8 {[%clk 0:00:04]}  Qa6 {[%clk 0:00:02]} 51. Re8+ {[%clk 0:00:03]}  Kd2 {[%clk 0:00:02]} 52. c8=Q {[%clk 0:00:02]}  Qe2+ {[%clk 0:00:00]} 53. Rxe2+ {[%clk 0:00:02]} 1-0


[Site "https://www.chess.com"]